fUST/lending_fUST_20250222
["ID","MTS","AMOUNT","RATE_DAILY","PERIOD"]
[354069533,1740221443528,-1062.1917759,0.00015589,2]
[354069534,1740221443536,-721.8977467,0.00015589,2]
[354069536,1740221443545,-758.50944513,0.0001565,2]
[354069538,1740221443554,-758.50944513,0.0001575,2]
[354069540,1740221443564,-220.293447,0.00015775,2]
[354069541,1740221443573,-179.71246006,0.00015786,2]
[354069543,1740221443584,-758.50944513,0.0001585,2]
[354069545,1740221443594,-1000.0,0.0001589,2]
[354069547,1740221443604,-465.00269326,0.00015891,2]
[354069549,1740221443613,-758.50944513,0.0001595,2]
[354069551,1740221443623,-758.50944513,0.0001605,2]
[354069552,1740221443632,-355.293833,0.00016082,2]
[354069554,1740221443641,-355.293833,0.00016082,2]
[354069555,1740221443650,-355.293833,0.00016082,2]
[354069556,1740221443659,-355.293833,0.00016082,2]
[354069557,1740221443668,-7839.98853834,0.00016146,2]
[354069558,1740221443679,-5000.0,0.00016146,2]
[354069559,1740221443690,-5000.0,0.00016146,2]
[354069560,1740221443700,-5000.0,0.00016146,2]
[354069561,1740221443710,-5000.0,0.00016146,2]
[354069562,1740221443720,-758.50944513,0.0001615,2]
[354069563,1740221443730,-681.19,0.00016164,2]
[354069567,1740221443813,-661.76198836,0.000162,2]
[354069569,1740221443824,-661.76198834,0.000162,2]
[354069571,1740221443835,-661.76198834,0.000162,2]
[354069572,1740221443844,-758.50944513,0.0001625,2]
[354069573,1740221443855,-758.50944513,0.0001635,2]
[354069575,1740221443865,-154.796407,0.00016356,2]
[354069576,1740221443875,-153.0,0.00016356,2]
[354069577,1740221443886,-153.0,0.00016356,2]
[354069578,1740221443895,-154.796407,0.00016356,2]
[354069579,1740221443905,-153.0,0.00016356,2]
[354069580,1740221443915,-557.2941539,0.00016356,2]
[354069581,1740221443924,-153.0,0.00016356,2]
[354069582,1740221443934,-557.2941539,0.00016356,2]
[354069583,1740221443943,-154.796407,0.00016356,2]
[354069584,1740221443954,-153.0,0.00016356,2]
[354069585,1740221443964,-153.0,0.00016356,2]
[354069586,1740221443974,-309.3221926,0.00016356,2]
[354069587,1740221443984,-153.0,0.00016356,2]
[354069588,1740221443994,-154.796407,0.00016356,2]
[354069589,1740221444004,-153.0,0.00016356,2]
[354069590,1740221444014,-557.2941539,0.00016356,2]
[354069591,1740221444024,-153.0,0.00016356,2]
[354069592,1740221444034,-557.2941539,0.00016356,2]
[354069593,1740221444044,-153.0,0.00016356,2]
[354069594,1740221444054,-154.796407,0.00016356,2]
[354069595,1740221444064,-154.796407,0.00016356,2]
[354069596,1740221444074,-557.2941539,0.00016356,2]
[354069597,1740221444085,-153.0,0.00016356,2]
[354069598,1740221444095,-153.0,0.00016356,2]
[354069599,1740221444105,-153.0,0.00016356,2]
[354069600,1740221444115,-2500.0,0.0001642,2]
[354069601,1740221444124,-932.31365711,0.00016422,2]
[354069602,1740221444134,-1296.31444142,0.00016422,2]
[354069603,1740221444144,-1500.0,0.00016422,2]
[354069604,1740221444154,-2500.0,0.00016429,2]
[354069605,1740221444163,-2500.0,0.00016438,2]
[354069606,1740221444172,-500.0,0.00016438,3]
[354069607,1740221444181,-500.0,0.00016438,3]
[354069608,1740221444191,-500.0,0.00016438,3]
[354069609,1740221444201,-315.11686728,0.00016438,3]
[354069610,1740221444211,-500.0,0.00016438,2]
[354069611,1740221444221,-400.58567501,0.00016438,7]
[354069612,1740221444230,-758.50944513,0.0001645,2]
[354069613,1740221444239,-7765.63015601,0.00016486,2]
[354069614,1740221444249,-462.0,0.00016503,2]
[354069615,1740221444259,-462.0,0.00016503,2]
[354069616,1740221444269,-462.0,0.00016503,2]
[354069617,1740221444279,-462.0,0.00016503,2]
[354069619,1740221444289,-462.0,0.00016503,2]
[354069620,1740221444299,-462.0,0.00016503,2]
[354069621,1740221444308,-462.0,0.00016503,2]
[354069622,1740221444318,-462.0,0.00016503,2]
[354069623,1740221444328,-462.0,0.00016503,2]
[354069624,1740221444337,-462.0,0.00016503,2]
[354069625,1740221444347,-462.0,0.00016503,2]
[354069626,1740221444356,-462.0,0.00016503,2]
[354069627,1740221444366,-462.0,0.00016503,2]
[354069628,1740221444376,-462.0,0.00016503,2]
[354069629,1740221444386,-656.0,0.00016503,2]
[354069630,1740221444396,-656.0,0.00016503,2]
[354069631,1740221444407,-656.0,0.00016503,2]
[354069632,1740221444417,-656.0,0.00016503,2]
[354069633,1740221444427,-656.0,0.00016503,2]
[354069634,1740221444436,-656.0,0.00016503,2]
[354069635,1740221444446,-656.0,0.00016503,2]
[354069636,1740221444456,-656.0,0.00016503,2]
[354069637,1740221444466,-656.0,0.00016503,2]
[354069638,1740221444475,-656.0,0.00016503,2]
[354069639,1740221444485,-656.0,0.00016503,2]
[354069640,1740221444494,-656.0,0.00016503,2]
[354069641,1740221444504,-656.0,0.00016503,2]
[354069642,1740221444513,-656.0,0.00016503,2]
[354069643,1740221444523,-462.0,0.00016505,2]
[354069644,1740221444532,-462.0,0.00016505,2]
[354069645,1740221444541,-462.0,0.00016505,2]
[354069646,1740221444551,-462.0,0.00016505,2]
[354069647,1740221444561,-462.0,0.00016505,2]
[354069648,1740221444571,-462.0,0.00016505,2]
[354069649,1740221444581,-462.0,0.00016505,2]
[354069650,1740221444590,-462.0,0.00016505,2]
[354069651,1740221444599,-462.0,0.00016505,2]
[354069652,1740221444609,-462.0,0.00016505,2]
[354069653,1740221444618,-462.0,0.00016505,2]
[354069654,1740221444628,-462.0,0.00016505,2]
[354069655,1740221444638,-462.0,0.00016505,2]
[354069656,1740221444648,-462.0,0.00016505,2]
[354069657,1740221444657,-656.0,0.00016506,2]
[354069658,1740221444667,-656.0,0.00016506,2]
[354069659,1740221444679,-656.0,0.00016506,2]
[354069660,1740221444689,-656.0,0.00016506,2]
[354069661,1740221444698,-656.0,0.00016506,2]
[354069662,1740221444708,-656.0,0.00016506,2]
[354069663,1740221444718,-656.0,0.00016506,2]
[354069664,1740221444728,-656.0,0.00016506,2]
[354069665,1740221444736,-656.0,0.00016506,2]
[354069666,1740221444745,-656.0,0.00016506,2]
[354069667,1740221444755,-656.0,0.00016506,2]
[354069668,1740221444765,-656.0,0.00016506,2]
[354069669,1740221444775,-656.0,0.00016506,2]
[354069670,1740221444785,-656.0,0.00016506,2]
[354069671,1740221444795,-462.0,0.00016508,2]
[354069672,1740221444805,-462.0,0.00016508,2]
[354069673,1740221444814,-462.0,0.00016508,2]
[354069674,1740221444824,-462.0,0.00016508,2]
[354069675,1740221444834,-462.0,0.00016508,2]
[354069676,1740221444845,-462.0,0.00016508,2]
[354069677,1740221444855,-462.0,0.00016508,2]
[354069678,1740221444864,-462.0,0.00016508,2]
[354069679,1740221444874,-462.0,0.00016508,2]
[354069680,1740221444884,-462.0,0.00016508,2]
[354069681,1740221444894,-462.0,0.00016508,2]
[354069682,1740221444904,-462.0,0.00016508,2]
[354069683,1740221444914,-462.0,0.00016508,2]
[354069684,1740221444924,-462.0,0.00016508,2]
[354069685,1740221444934,-656.0,0.00016508,2]
[354069686,1740221444943,-656.0,0.00016508,2]
[354069687,1740221444953,-656.0,0.00016508,2]
[354069688,1740221444963,-656.0,0.00016508,2]
[354069689,1740221444972,-656.0,0.00016508,2]
[354069690,1740221444981,-656.0,0.00016508,2]
[354069691,1740221444990,-656.0,0.00016508,2]
[354069692,1740221445000,-656.0,0.00016508,2]
[354069693,1740221445009,-656.0,0.00016508,2]
[354069694,1740221445019,-656.0,0.00016508,2]
[354069695,1740221445027,-656.0,0.00016508,2]
[354069696,1740221445037,-656.0,0.00016508,2]
[354069697,1740221445046,-656.0,0.00016508,2]
[354069698,1740221445056,-656.0,0.00016508,2]
[354069699,1740221445065,-462.0,0.00016524,2]
[354069700,1740221445074,-462.0,0.00016524,2]
[354069701,1740221445085,-758.50944513,0.0001655,2]
[354069702,1740221445094,-2200.0,0.00016553,2]
[354069703,1740221445103,-265.796,0.00016586,2]
[354069704,1740221445114,-538.0,0.00016586,2]
[354069705,1740221445123,-1970.0,0.00016586,2]
[354069706,1740221445132,-2287.0,0.00016586,2]
[354069707,1740221445142,-399.15,0.00016586,2]
[354069708,1740221445152,-250.0,0.00016586,2]
[354069709,1740221445161,-758.50944513,0.0001665,2]
[354069710,1740221445170,-1000.0,0.00016665,2]
[354069711,1740221445179,-465.00013466,0.00016686,2]
[354069712,1740221445188,-758.50944513,0.0001675,2]
[354069713,1740221445198,-537.5087565,0.00016756,2]
[354069714,1740221445208,-355.293833,0.00016756,2]
[354069715,1740221445217,-355.293833,0.00016756,2]
[354069716,1740221445227,-758.50944513,0.0001685,2]
[354069717,1740221445236,-153.309444,0.00016904,2]
[354069718,1740221445245,-465.05117865,0.00016933,2]
[354069719,1740221445254,-355.293833,0.00016941,2]
[354069720,1740221445264,-758.50944513,0.0001695,2]
[354069721,1740221445273,-823.0,0.00016971,2]
[354069722,1740221445282,-500.0,0.00017,7]
[354069723,1740221445292,-500.0,0.00017,7]
[354069724,1740221445303,-500.0,0.00017,7]
[354069725,1740221445312,-500.0,0.00017,7]
[354069726,1740221445322,-500.0,0.00017,7]
[354069727,1740221445331,-500.0,0.00017,7]
[354069728,1740221445341,-288.67,0.00017,7]
[354069730,1740221445350,-500.0,0.00017,7]
[354069731,1740221445360,-758.50944513,0.0001705,2]
[354069732,1740221445369,-153.0,0.00017078,2]
[354069733,1740221445378,-153.0,0.00017078,2]
[354069734,1740221445388,-153.0,0.00017078,2]
[354069735,1740221445399,-758.50944513,0.0001715,2]
[354069736,1740221445409,-160.6886932,0.00017151,2]
[354069737,1740221445420,-153.0,0.00017178,2]
[354069738,1740221445429,-154.796407,0.00017178,2]
[354069739,1740221445439,-153.0,0.00017178,2]
[354069740,1740221445449,-154.796407,0.00017178,2]
[354069741,1740221445460,-153.0,0.00017178,2]
[354069742,1740221445469,-153.0,0.00017178,2]
[354069743,1740221445479,-154.796407,0.00017178,2]
[354069744,1740221445489,-154.796407,0.00017178,2]
[354069745,1740221445499,-431.450657,0.00017178,2]
[354069746,1740221445510,-153.0,0.00017178,2]
[354069747,1740221445521,-154.796407,0.00017178,2]
[354069748,1740221445531,-154.796407,0.00017178,2]
[354069749,1740221445543,-153.0,0.00017178,2]
[354069750,1740221445555,-154.796407,0.00017178,2]
[354069751,1740221445565,-154.796407,0.00017178,2]
[354069752,1740221445576,-153.0,0.00017178,2]
[354069753,1740221445588,-154.796407,0.00017178,2]
[354069756,1740221445669,-154.2735528,0.00017178,2]
[354069757,1740221445680,-154.2171276,0.00017178,2]
[354069758,1740221445691,-306.0,0.00017178,2]
[354069759,1740221445701,-153.0,0.00017178,2]
[354069760,1740221445711,-161.445249,0.00017225,2]
[354069761,1740221445720,-758.50944513,0.0001725,2]
[354069762,1740221445731,-602.06919072,0.0001728,2]
[354069763,1740221445741,-758.50944513,0.0001735,2]
[354069764,1740221445751,-163.84683545,0.0001737,2]
[354069765,1740221445763,-160.6886932,0.0001737,2]
[354069766,1740221445773,-150.0,0.00017436,4]
[354069767,1740221445783,-153.0,0.00017441,2]
[354069768,1740221445793,-153.0,0.00017441,2]
[354069769,1740221445803,-153.7597851,0.00017441,2]
[354069770,1740221445812,-153.0,0.00017441,2]
[354069772,1740221445822,-557.2941539,0.00017441,2]
[354069773,1740221445832,-153.0,0.00017441,2]
[354069774,1740221445842,-557.2941539,0.00017441,2]
[354069775,1740221445851,-557.2941539,0.00017441,2]
[354069776,1740221445861,-557.2941539,0.00017441,2]
[354069777,1740221445871,-557.2941539,0.00017441,2]
[354069778,1740221445881,-557.2941539,0.00017441,2]
[354069779,1740221445890,-758.50944513,0.0001745,2]
[354069780,1740221445900,-501.46570576,0.00017452,2]
[354069781,1740221445910,-681.19,0.00017534,4]
[354069782,1740221445920,-758.50944513,0.0001755,2]
[354069783,1740221445930,-11621.84826505,0.00017585,2]
[354069784,1740221445939,-160.6886932,0.00017589,2]
[354069785,1740221445949,-3285.4672316,0.00017639,2]
[354069786,1740221445958,-758.50944513,0.0001765,2]
[354069787,1740221445968,-151.18936095,0.0001769,4]
[354069788,1740221445977,-355.293833,0.00017715,2]
[354069789,1740221445987,-355.293833,0.00017715,2]
[354069790,1740221445996,-352.6720964,0.00017715,2]
[354069791,1740221446006,-500.0,0.0001772,2]
[354069792,1740221446016,-758.50944513,0.0001775,2]
[354069793,1740221446025,-6238.11532575,0.000178,2]
[354069794,1740221446036,-22627.40192453,0.0001781,2]
[354069795,1740221446046,-758.50944513,0.0001785,2]
[354069796,1740221446057,-1000.0,0.0001787,2]
[354069797,1740221446066,-1000.0,0.00017884,2]
[354069798,1740221446076,-3000.0,0.000179,2]
[354069799,1740221446087,-3000.0,0.000179,2]
[354069800,1740221446096,-170.46,0.000179,31]
[354069801,1740221446106,-170.46,0.000179,31]
[354069802,1740221446116,-170.46,0.000179,31]
[354069803,1740221446126,-170.46,0.000179,31]
[354069804,1740221446136,-170.46,0.000179,31]
[354069805,1740221446146,-170.46,0.000179,31]
[354069806,1740221446156,-170.46,0.000179,31]
[354069807,1740221446166,-935.0,0.000179,2]
[354069808,1740221446176,-334.0,0.0001794,2]
[354069809,1740221446186,-758.50944513,0.0001795,2]
[354069810,1740221446195,-500.0,0.00017973,2]
[354069811,1740221446204,-383.123283,0.00017973,2]
[354069812,1740221446215,-500.0,0.00017973,2]
[354069813,1740221446225,-182.303035,0.00017991,2]
[354069814,1740221446234,-315.0,0.00017991,2]
[354069815,1740221446244,-201.69667616,0.00017991,2]
[354069816,1740221446254,-204.88884452,0.00017991,2]
[354069817,1740221446263,-349.0,0.00017991,2]
[354069818,1740221446273,-349.0,0.00017991,2]
[354069819,1740221446283,-315.0,0.00017991,2]
[354069820,1740221446293,-349.0,0.00017991,2]
[354069821,1740221446303,-315.0,0.00017991,2]
[354069822,1740221446312,-315.0,0.00017991,2]
[354069823,1740221446321,-349.0,0.00017991,2]
[354069824,1740221446331,-315.0,0.00017991,2]
[354069825,1740221446340,-349.0,0.00017991,2]
[354069826,1740221446350,-315.0,0.00017991,2]
[354069827,1740221446361,-349.0,0.00017991,2]
[354069828,1740221446371,-315.0,0.00017991,2]
[354069829,1740221446380,-349.0,0.00017991,2]
[354069830,1740221446391,-315.0,0.00017991,2]
[354069831,1740221446401,-349.0,0.00017991,2]
[354069832,1740221446412,-315.0,0.00017991,2]
[354069833,1740221446422,-349.0,0.00017991,2]
[354069834,1740221446431,-315.0,0.00017991,2]
[354069835,1740221446441,-349.0,0.00017991,2]
[354069836,1740221446452,-315.0,0.00017991,2]
[354069837,1740221446461,-349.0,0.00017991,2]
[354069838,1740221446471,-315.0,0.00017991,2]
[354069839,1740221446481,-349.0,0.00017991,2]
[354069840,1740221446494,-315.0,0.00017991,2]
[354069841,1740221446505,-349.0,0.00017991,2]
[354069842,1740221446516,-315.0,0.00017991,2]
[354069843,1740221446526,-349.0,0.00017991,2]
[354069844,1740221446536,-349.0,0.00017991,2]
[354069845,1740221446547,-315.0,0.00017991,2]
[354069846,1740221446558,-349.0,0.00017991,2]
[354069847,1740221446568,-315.0,0.00017991,2]
[354069848,1740221446580,-349.0,0.00017991,2]
[354069849,1740221446591,-315.0,0.00017991,2]
[354069850,1740221446601,-349.0,0.00017991,2]
[354069851,1740221446611,-315.0,0.00017991,2]
[354069852,1740221446621,-349.0,0.00017991,2]
[354069853,1740221446631,-315.0,0.00017991,2]
[354069854,1740221446647,-315.0,0.00017991,2]
[354069855,1740221446665,-315.0,0.00017991,2]
[354069856,1740221446678,-315.0,0.00017991,2]
[354069857,1740221446692,-315.0,0.00017991,2]
[354069858,1740221446702,-315.0,0.00017991,2]
[354069859,1740221446712,-315.0,0.00017991,2]
[354069860,1740221446723,-349.0,0.00017991,2]
[354069861,1740221446734,-315.0,0.00017991,2]
[354069862,1740221446744,-349.0,0.00017991,2]
[354069863,1740221446753,-315.0,0.00017991,2]
[354069864,1740221446764,-349.0,0.00017991,2]
[354069865,1740221446774,-315.0,0.00017991,2]
[354069866,1740221446784,-349.0,0.00017991,2]
[354069867,1740221446794,-315.0,0.00017991,2]
[354069868,1740221446803,-349.0,0.00017991,2]
[354069869,1740221446813,-315.0,0.00017991,2]
[354069870,1740221446822,-315.0,0.00017991,2]
[354069871,1740221446832,-315.0,0.00017991,2]
[354069872,1740221446842,-349.0,0.00017991,2]
[354069873,1740221446852,-315.0,0.00017991,2]
[354069874,1740221446861,-315.0,0.00017991,2]
[354069875,1740221446871,-315.0,0.00017991,2]
[354069876,1740221446881,-411.09860035,0.00017991,2]
[354069877,1740221446890,-349.0,0.00017991,2]
[354069878,1740221446900,-349.0,0.00017991,2]
[354069879,1740221446910,-349.0,0.00017991,2]
[354069880,1740221446920,-349.0,0.00017991,2]
[354069881,1740221446930,-349.0,0.00017991,2]
[354069882,1740221446940,-349.0,0.00017991,2]
[354069883,1740221446950,-349.0,0.00017991,2]
[354069884,1740221446960,-349.0,0.00017991,2]
[354069885,1740221446969,-273.19398079,0.00017991,2]
[354069886,1740221446978,-1284.15788671,0.00017998,2]
[354069887,1740221446987,-160.0,0.00018,5]
[354069888,1740221446997,-14643.39024252,0.00018,5]
[354069889,1740221447007,-8888.23138904,0.00018,5]
[354069890,1740221447016,-233235.81621681,0.00018,15]
[354069891,1740221447025,-777149.04407472,0.00018,15]
[354069893,1740221517210,233.442724,9.041e-05,2]
[354069895,1740222325136,2999.5039593,0.00012,2]
[354069897,1740222506631,232.78526,9.041e-05,2]
[354069899,1740222564191,-9474.86522011,0.00012,2]
[354069946,1740222632109,-225.63082059,0.00012,2]
[354069948,1740222632123,-300.0,0.00012873,2]
[354069950,1740222632132,-24900.0,0.00012874,2]
[354069952,1740222632142,-1684.00171905,0.00013446,2]
[354069954,1740222632151,-552.96895375,0.00013598,2]
[354069956,1740222632162,-500.0,0.00013673,2]
[354069958,1740222632171,-500.0,0.00013673,2]
[354069960,1740222632181,-500.0,0.00013673,2]
[354069962,1740222632191,-500.0,0.00013673,2]
[354069964,1740222632201,-151.0,0.0001369,2]
[354069966,1740222632211,-936.73674591,0.0001369,2]
[354069969,1740222632221,-500.0,0.00013697,2]
[354069970,1740222632230,-500.0,0.00013697,2]
[354069973,1740222632239,-500.0,0.00013697,2]
[354069975,1740222632250,-500.0,0.00013697,2]
[354069977,1740222632259,-500.0,0.00013697,2]
[354069979,1740222632269,-500.0,0.00013697,2]
[354069982,1740222632278,-500.0,0.00013697,2]
[354069984,1740222632288,-500.0,0.00013697,2]
[354069986,1740222632297,-308.58976457,0.00013697,2]
[354069989,1740222632306,-500.0,0.00013697,2]
[354069991,1740222632316,-500.0,0.00013697,2]
[354069993,1740222632325,-500.0,0.00013697,2]
[354069995,1740222632333,-400.60382237,0.00013697,2]
[354069997,1740222632342,-500.0,0.00013697,2]
[354069998,1740222632351,-500.0,0.00013697,2]
[354070000,1740222632361,-500.0,0.00013697,2]
[354070002,1740222632370,-500.0,0.00013697,2]
[354070005,1740222632380,-500.0,0.00013697,2]
[354070006,1740222632389,-500.0,0.00013697,2]
[354070008,1740222632399,-500.0,0.00013697,2]
[354070011,1740222632409,-500.0,0.00013697,2]
[354070013,1740222632419,-500.0,0.00013697,2]
[354070014,1740222632428,-500.0,0.00013697,2]
[354070016,1740222632438,-500.0,0.00013697,2]
[354070018,1740222632447,-178.82606389,0.00013697,2]
[354070019,1740222632456,-400.0,0.00013697,2]
[354070020,1740222632465,-500.0,0.00013698,2]
[354070021,1740222632475,-501.14956109,0.00013698,2]
[354070022,1740222632483,-500.0,0.00013698,2]
[354070023,1740222632492,-558.3,0.00013698,2]
[354070024,1740222632501,-500.0,0.00013698,2]
[354070025,1740222632510,-500.0,0.00013698,2]
[354070026,1740222632520,-500.0,0.00013698,2]
[354070027,1740222632529,-649.95626844,0.00013698,2]
[354070028,1740222632539,-500.0,0.00013698,2]
[354070029,1740222632548,-502.39896704,0.00013698,2]
[354070030,1740222632557,-500.0,0.00013698,2]
[354070031,1740222632567,-204.29580476,0.00013698,2]
[354070032,1740222632576,-500.0,0.00013698,2]
[354070033,1740222632585,-240.91052822,0.00013698,2]
[354070034,1740222632594,-500.0,0.00013698,2]
[354070035,1740222632604,-500.0,0.00013698,2]
[354070037,1740222632613,-500.0,0.00013698,2]
[354070039,1740222632622,-500.0,0.00013698,2]
[354070041,1740222632631,-500.0,0.00013698,2]
[354070043,1740222632642,-500.0,0.00013698,2]
[354070045,1740222632651,-500.0,0.00013698,2]
[354070047,1740222632661,-500.0,0.00013698,2]
[354070060,1740222632775,-500.0,0.00013698,2]
[354070063,1740222632786,-500.0,0.00013698,2]
[354070065,1740222632796,-227.16025391,0.00013698,2]
[354070067,1740222632806,-297.40428303,0.00013698,2]
[354070069,1740222632816,-500.0,0.00013698,2]
[354070071,1740222632825,-500.0,0.00013698,2]
[354070073,1740222632835,-500.0,0.00013698,2]
[354070075,1740222632845,-500.0,0.00013698,2]
[354070077,1740222632855,-500.0,0.00013698,2]
[354070079,1740222632865,-500.0,0.00013698,2]
[354070081,1740222632874,-500.0,0.00013698,2]
[354070083,1740222632884,-500.0,0.00013698,2]
[354070085,1740222632894,-500.0,0.00013698,2]
[354070087,1740222632903,-500.0,0.00013698,2]
[354070089,1740222632913,-502.10711538,0.00013698,2]
[354070091,1740222632922,-500.0,0.00013698,2]
[354070093,1740222632932,-500.0,0.00013698,2]
[354070095,1740222632942,-330.50263741,0.00013698,2]
[354070097,1740222632951,-500.0,0.00013698,2]
[354070099,1740222632960,-500.0,0.00013698,2]
[354070100,1740222632970,-500.0,0.00013698,2]
[354070102,1740222632979,-500.0,0.00013698,2]
[354070104,1740222632988,-500.0,0.00013698,2]
[354070106,1740222632998,-500.0,0.00013698,2]
[354070108,1740222633007,-500.0,0.00013698,2]
[354070110,1740222633017,-450.20611171,0.00013698,2]
[354070112,1740222633027,-500.0,0.00013698,2]
[354070114,1740222633038,-500.0,0.00013698,2]
[354070115,1740222633048,-500.0,0.00013698,2]
[354070117,1740222633059,-500.0,0.00013698,2]
[354070119,1740222633071,-500.0,0.00013698,2]
[354070122,1740222633082,-500.0,0.00013698,2]
[354070124,1740222633091,-405.61635721,0.00013698,2]
[354070125,1740222633101,-500.0,0.00013698,2]
[354070128,1740222633113,-500.0,0.00013698,2]
[354070129,1740222633126,-500.0,0.00013698,2]
[354070131,1740222633136,-500.0,0.00013698,2]
[354070133,1740222633147,-500.0,0.00013698,2]
[354070135,1740222633157,-500.0,0.00013698,2]
[354070137,1740222633167,-500.0,0.00013698,2]
[354070139,1740222633177,-500.0,0.00013698,2]
[354070141,1740222633187,-500.0,0.00013698,2]
[354070143,1740222633199,-500.0,0.00013698,2]
[354070145,1740222633210,-500.0,0.00013698,2]
[354070148,1740222633220,-500.0,0.00013698,2]
[354070149,1740222633230,-500.0,0.00013698,2]
[354070152,1740222633239,-500.0,0.00013698,2]
[354070153,1740222633249,-500.0,0.00013698,2]
[354070155,1740222633259,-500.0,0.00013698,2]
[354070157,1740222633268,-500.0,0.00013698,2]
[354070159,1740222633278,-500.0,0.00013698,2]
[354070161,1740222633287,-500.0,0.00013698,2]
[354070163,1740222633296,-500.0,0.00013698,2]
[354070165,1740222633306,-500.0,0.00013698,2]
[354070167,1740222633315,-585.63380157,0.00013698,2]
[354070169,1740222633325,-500.0,0.00013698,2]
[354070171,1740222633335,-500.0,0.00013698,2]
[354070173,1740222633345,-500.0,0.00013698,2]
[354070176,1740222633356,-500.0,0.00013698,2]
[354070178,1740222633369,-500.0,0.00013698,2]
[354070180,1740222633378,-500.0,0.00013698,2]
[354070182,1740222633388,-500.0,0.00013698,2]
[354070183,1740222633397,-500.0,0.00013698,2]
[354070185,1740222633407,-500.0,0.00013698,2]
[354070187,1740222633416,-500.0,0.00013698,2]
[354070189,1740222633426,-515.7952176,0.00013698,2]
[354070191,1740222633435,-500.0,0.00013698,2]
[354070194,1740222633447,-500.0,0.00013698,2]
[354070195,1740222633456,-500.0,0.00013698,2]
[354070197,1740222633465,-444.550214,0.00013698,2]
[354070199,1740222633475,-500.0,0.00013698,2]
[354070201,1740222633484,-500.0,0.00013698,2]
[354070203,1740222633493,-500.0,0.00013698,2]
[354070205,1740222633503,-500.0,0.00013698,2]
[354070207,1740222633512,-500.0,0.00013698,2]
[354070209,1740222633521,-500.0,0.00013698,2]
[354070211,1740222633530,-500.0,0.00013698,2]
[354070213,1740222633539,-500.0,0.00013698,2]
[354070215,1740222633548,-500.0,0.00013698,2]
[354070217,1740222633558,-500.0,0.00013698,2]
[354070219,1740222633567,-500.0,0.00013698,2]
[354070221,1740222633576,-500.0,0.00013698,2]
[354070223,1740222633585,-500.0,0.00013698,2]
[354070225,1740222633595,-500.0,0.00013698,2]
[354070227,1740222633603,-500.0,0.00013698,2]
[354070229,1740222633613,-500.0,0.00013698,2]
[354070231,1740222633622,-500.0,0.00013698,2]
[354070233,1740222633632,-500.0,0.00013698,2]
[354070234,1740222633641,-500.0,0.00013698,2]
[354070236,1740222633651,-500.0,0.00013698,2]
[354070238,1740222633660,-500.0,0.00013698,2]
[354070240,1740222633670,-500.0,0.00013698,2]
[354070242,1740222633680,-500.0,0.00013698,2]
[354070244,1740222633690,-500.0,0.00013698,2]
[354070247,1740222633700,-500.0,0.00013698,2]
[354070248,1740222633710,-500.0,0.00013698,2]
[354070250,1740222633719,-500.0,0.00013698,2]
[354070253,1740222633729,-500.0,0.00013698,2]